fUSD/lending_fUSD_20260527
["ID","MTS","AMOUNT","RATE_DAILY","PERIOD"]
[423136543,1779881454000,-233.601313,0.00038356,30]
[423136551,1779881454000,-233.601313,0.00038356,30]
[423136561,1779881454000,-1064.329233,0.00038356,30]
[423136553,1779881454000,-233.601313,0.00038356,30]
[423136552,1779881454000,-233.601313,0.00038356,30]
[423136546,1779881454000,-233.601313,0.00038356,30]
[423136555,1779881454000,-233.601313,0.00038356,30]
[423136620,1779881455000,-152.0,0.000389,120]
[423136626,1779881455000,-500.0,0.00039041,2]
[423136621,1779881455000,-576.41397402,0.00038952,2]
[423136619,1779881455000,-163.25,0.0003884,86]
[423136617,1779881455000,-28127.54,0.00038811,14]
[423136616,1779881455000,-2180.67362666,0.00038805,30]
[423136614,1779881455000,-1904.43,0.000388,120]
[423136610,1779881455000,-972.06999781,0.00038768,2]
[423136615,1779881455000,-90490.0,0.000388,30]
[423136624,1779881455000,-300.0,0.00039,30]
[423136618,1779881455000,-10305.1062112,0.00038837,2]
[423136627,1779881455000,-1000.0,0.00039094,120]
[423136633,1779881455000,-12740.13229813,0.00039175,7]
[423136628,1779881455000,-1589.0,0.00039111,11]
[423136625,1779881455000,-2316.0,0.0003904,11]
[423136629,1779881455000,-3594.94,0.00039115,2]
[423136623,1779881455000,-152.0,0.00039,120]
[423136631,1779881455000,-199.6080688,0.00039125,2]
[423136639,1779881455000,-573.31620361,0.00039243,2]
[423136632,1779881455000,-163.25,0.0003917,105]
[423136638,1779881455000,-411.30472243,0.00039215,2]
[423136637,1779881455000,-360.62848,0.00039195,2]
[423136641,1779881455000,-250.0,0.00039253,30]
[423136612,1779881455000,-300.0,0.00038799,10]
[423136622,1779881455000,-2165.85409505,0.00039,7]
[423136611,1779881455000,-1597.0,0.00038784,11]
[423136585,1779881455000,-1064.329233,0.00038356,30]
[423136613,1779881455000,-642.27,0.000388,120]
[423136584,1779881455000,-151.0,0.00038356,30]
[423136583,1779881455000,-1064.329233,0.00038356,30]
[423136630,1779881455000,-896.1765133,0.00039125,2]
[423136595,1779881455000,-396.93053691,0.00038442,10]
[423136586,1779881455000,-151.0,0.00038356,30]
[423136588,1779881455000,-151.0,0.00038356,30]
[423136587,1779881455000,-1064.329233,0.00038356,30]
[423136591,1779881455000,-151.0,0.00038356,30]
[423136594,1779881455000,-152.0,0.000384,120]
[423136590,1779881455000,-151.0,0.00038356,30]
[423136592,1779881455000,-151.0,0.00038356,30]
[423136589,1779881455000,-1064.329233,0.00038356,30]
[423136609,1779881455000,-165.8,0.00038686,2]
[423136593,1779881455000,-257.82656,0.00038356,30]
[423136597,1779881455000,-396.93053681,0.00038442,10]
[423136596,1779881455000,-396.93053681,0.00038442,10]
[423136607,1779881455000,-1200.0,0.0003864,60]
[423136600,1779881455000,-2601.99,0.000385,2]
[423136599,1779881455000,-1616.2247174,0.00038443,2]
[423136603,1779881455000,-2135.8,0.000385,14]
[423136602,1779881455000,-163.25,0.000385,60]
[423136598,1779881455000,-396.93053681,0.00038442,10]
[423136601,1779881455000,-10407.94,0.000385,2]
[423136604,1779881455000,-1176.8713959,0.00038548,2]
[423136605,1779881455000,-221.34,0.00038609,30]
[423136606,1779881455000,-234.0,0.00038632,60]
[423136608,1779881455000,-233.97,0.00038658,30]
[423136640,1779881455000,-250.0,0.00039253,30]
[423136647,1779881455000,-300.0,0.00039314,10]
[423136634,1779881455000,-1200.0,0.00039193,120]
[423136665,1779881455000,-2064.02,0.00039315,120]
[423136674,1779881455000,-242.223504,0.00039315,120]
[423136670,1779881455000,-2064.02,0.00039315,120]
[423136669,1779881455000,-2064.02,0.00039315,120]
[423136671,1779881455000,-2064.02,0.00039315,120]
[423136672,1779881455000,-411.92297036,0.00039315,120]
[423136678,1779881455000,-500.0,0.00039315,120]
[423136687,1779881455000,-2816.11,0.00039315,120]
[423136686,1779881455000,-2816.11,0.00039315,120]
[423136688,1779881455000,-2816.11,0.00039315,120]
[423136690,1779881455000,-2816.11,0.00039315,120]
[423136689,1779881455000,-2816.11,0.00039315,120]
[423136681,1779881455000,-427.74621557,0.00039315,120]
[423136684,1779881455000,-2816.11,0.00039315,120]
[423136679,1779881455000,-500.0,0.00039315,120]
[423136683,1779881455000,-2816.11,0.00039315,120]
[423136636,1779881455000,-5800.0,0.00039195,14]
[423136685,1779881455000,-2816.11,0.00039315,120]
[423136680,1779881455000,-500.0,0.00039315,120]
[423136694,1779881455000,-2816.11,0.00039315,120]
[423136691,1779881455000,-2816.11,0.00039315,120]
[423136692,1779881455000,-2816.11,0.00039315,120]
[423136696,1779881455000,-2816.11,0.00039315,120]
[423136693,1779881455000,-2816.11,0.00039315,120]
[423136695,1779881455000,-2816.11,0.00039315,120]
[423136668,1779881455000,-155.42494154,0.00039315,120]
[423136676,1779881455000,-500.0,0.00039315,120]
[423136682,1779881455000,-2816.11,0.00039315,120]
[423136673,1779881455000,-167.9355991,0.00039315,120]
[423136675,1779881455000,-500.0,0.00039315,120]
[423136635,1779881455000,-500.0,0.00039193,120]
[423136644,1779881455000,-2601.99,0.000393,2]
[423136645,1779881455000,-10407.94,0.000393,2]
[423136650,1779881455000,-500.0,0.00039315,120]
[423136651,1779881455000,-500.0,0.00039315,120]
[423136642,1779881455000,-411.30472241,0.00039279,2]
[423136652,1779881455000,-191.41868537,0.00039315,120]
[423136646,1779881455000,-150.0,0.000393,10]
[423136649,1779881455000,-500.0,0.00039315,120]
[423136648,1779881455000,-500.0,0.00039314,30]
[423136659,1779881455000,-2064.02,0.00039315,120]
[423136654,1779881455000,-2064.02,0.00039315,120]
[423136643,1779881455000,-152.0,0.000393,120]
[423136655,1779881455000,-2064.02,0.00039315,120]
[423136677,1779881455000,-606.77997374,0.00039315,120]
[423136656,1779881455000,-2064.02,0.00039315,120]
[423136666,1779881455000,-500.0,0.00039315,120]
[423136664,1779881455000,-500.0,0.00039315,120]
[423136663,1779881455000,-2064.02,0.00039315,120]
[423136667,1779881455000,-2064.02,0.00039315,120]
[423136661,1779881455000,-2064.02,0.00039315,120]
[423136653,1779881455000,-2064.02,0.00039315,120]
[423136658,1779881455000,-2064.02,0.00039315,120]
[423136660,1779881455000,-2064.02,0.00039315,120]
[423136657,1779881455000,-2064.02,0.00039315,120]
[423136662,1779881455000,-500.0,0.00039315,120]
[423136720,1779881456000,-2147.45,0.00039315,120]
[423136730,1779881456000,-500.0,0.00039315,120]
[423136722,1779881456000,-2147.45,0.00039315,120]
[423136716,1779881456000,-2147.45,0.00039315,120]
[423136721,1779881456000,-509.01,0.00039315,2]
[423136719,1779881456000,-2147.45,0.00039315,120]
[423136723,1779881456000,-2147.45,0.00039315,120]
[423136724,1779881456000,-2147.45,0.00039315,120]
[423136726,1779881456000,-500.0,0.00039315,120]
[423136728,1779881456000,-500.0,0.00039315,120]
[423136725,1779881456000,-2147.45,0.00039315,120]
[423136727,1779881456000,-250.0,0.00039315,120]
[423136729,1779881456000,-500.0,0.00039315,120]
[423136731,1779881456000,-500.0,0.00039315,120]
[423136732,1779881456000,-312.46307818,0.00039315,120]
[423136717,1779881456000,-2147.45,0.00039315,120]
[423136738,1779881456000,-500.0,0.00039315,120]
[423136718,1779881456000,-2147.45,0.00039315,120]
[423136704,1779881456000,-482.0497849,0.00039315,120]
[423136709,1779881456000,-2147.45,0.00039315,120]
[423136697,1779881456000,-2816.11,0.00039315,120]
[423136698,1779881456000,-2816.11,0.00039315,120]
[423136700,1779881456000,-2816.11,0.00039315,120]
[423136706,1779881456000,-344.88843695,0.00039315,7]
[423136703,1779881456000,-500.0,0.00039315,120]
[423136702,1779881456000,-500.0,0.00039315,120]
[423136705,1779881456000,-500.0,0.00039315,7]
[423136715,1779881456000,-2147.45,0.00039315,120]
[423136699,1779881456000,-2816.11,0.00039315,120]
[423136707,1779881456000,-581.4167115,0.00039315,120]
[423136708,1779881456000,-2147.45,0.00039315,120]
[423136710,1779881456000,-2147.45,0.00039315,120]
[423136714,1779881456000,-2147.45,0.00039315,120]
[423136712,1779881456000,-2147.45,0.00039315,120]
[423136711,1779881456000,-2147.45,0.00039315,120]
[423136713,1779881456000,-2147.45,0.00039315,120]
[423136701,1779881456000,-187.91783499,0.00039315,120]
[423136736,1779881456000,-500.0,0.00039315,120]
[423136743,1779881456000,-1511.48199563,0.000394,120]
[423136735,1779881456000,-500.0,0.00039315,120]
[423136762,1779881456000,-2064.02,0.00039438,120]
[423136757,1779881456000,-2816.22800001,0.00039434,120]
[423136760,1779881456000,-250.0,0.00039438,7]
[423136759,1779881456000,-2147.45,0.00039437,120]
[423136761,1779881456000,-2064.02,0.00039438,120]
[423136764,1779881456000,-2064.02,0.00039438,120]
[423136770,1779881456000,-2147.45,0.00039439,120]
[423136758,1779881456000,-2064.02,0.00039436,120]
[423136766,1779881456000,-2064.02,0.00039438,120]
[423136765,1779881456000,-2064.02,0.00039438,120]
[423136771,1779881456000,-2147.45,0.00039439,120]
[423136768,1779881456000,-159.0,0.00039438,120]
[423136767,1779881456000,-2064.11430945,0.00039438,120]
[423136772,1779881456000,-2147.45,0.00039439,120]
[423136773,1779881456000,-576.07796143,0.00039439,120]
[423136733,1779881456000,-500.0,0.00039315,120]
[423136769,1779881456000,-2147.45,0.00039439,120]
[423136756,1779881456000,-2816.11,0.00039434,120]
[423136763,1779881456000,-2064.02,0.00039438,120]
[423136753,1779881456000,-2816.11,0.00039434,120]
[423136734,1779881456000,-500.0,0.00039315,120]
[423136737,1779881456000,-500.0,0.00039315,120]
[423136755,1779881456000,-2816.11,0.00039434,120]
[423136741,1779881456000,-10305.1062112,0.00039342,2]
[423136747,1779881456000,-1544.0,0.00039406,7]
[423136746,1779881456000,-1544.0,0.00039406,7]
[423136740,1779881456000,-546.87137406,0.00039342,2]
[423136742,1779881456000,-411.30472241,0.00039342,2]
[423136739,1779881456000,-499.49499999,0.00039315,120]
[423136744,1779881456000,-1144.96776129,0.000394,120]
[423136750,1779881456000,-253.38749672,0.00039406,7]
[423136752,1779881456000,-2064.02,0.00039434,120]
[423136751,1779881456000,-212.65620423,0.00039423,7]
[423136748,1779881456000,-1544.0,0.00039406,7]
[423136749,1779881456000,-562.82375326,0.00039406,7]
[423136754,1779881456000,-2816.11,0.00039434,120]
[423136745,1779881456000,-1544.0,0.00039406,7]
[423136788,1779881457000,-605.31118564,0.000355,2]
[423136780,1779881457000,-500.0,0.0003488,2]
[423136789,1779881457000,-300.0,0.000355,2]
[423136783,1779881457000,-500.0,0.00035179,2]
[423136779,1779881457000,-500.0,0.0003488,2]
[423136782,1779881457000,-500.0,0.00035179,2]
[423136776,1779881457000,-500.0,0.0003488,2]
[423136778,1779881457000,-500.0,0.0003488,2]
[423136777,1779881457000,-500.0,0.0003488,2]
[423136775,1779881457000,-2136.10274366,0.00033154,10]
[423136774,1779881457000,-800.42725634,0.00033154,10]
[423136784,1779881457000,-500.0,0.00035179,2]
[423136781,1779881457000,-500.0,0.0003488,2]
[423136787,1779881457000,-500.0,0.00035179,2]
[423136786,1779881457000,-500.0,0.00035179,2]
[423136791,1779881457000,-1068.40163352,0.000355,2]
[423136802,1779881457000,-517.94320604,0.00039439,120]
[423136801,1779881457000,-652.28097556,0.00039439,120]
[423136799,1779881457000,-182.35,0.0003732,2]
[423136800,1779881457000,-401.14785697,0.00039439,120]
[423136797,1779881457000,-500.0,0.00036399,2]
[423136803,1779881457000,-1344.61255395,0.00039439,120]
[423136798,1779881457000,-3288.4177992,0.00037092,2]
[423136785,1779881457000,-500.0,0.00035179,2]
[423136793,1779881457000,-151.0,0.00035381,2]
[423136790,1779881457000,-528.48327171,0.000355,2]
[423136795,1779881457000,-500.0,0.00035497,2]
[423136792,1779881457000,-348.5822008,0.00037092,2]
[423136794,1779881457000,-151.0,0.00035491,2]
[423136796,1779881457000,-894.65434383,0.000355,2]
[423136804,1779881457000,-435.22928051,0.00039439,120]
[423136809,1779881678000,255.28,0.00017601,2]
[423136810,1779881678000,255.28,0.00018528,2]
[423136811,1779881678000,255.28,0.00019454,2]
[423136812,1779881678000,255.28,0.0002038,2]
[423136814,1779881679000,255.28,0.00022233,2]
[423136813,1779881679000,255.28,0.00021307,2]
[423136816,1779881679000,255.28,0.00024086,2]
[423136815,1779881679000,255.28,0.0002316,2]
[423136821,1779881680000,255.28,0.00028718,2]
[423136820,1779881680000,255.28,0.00027792,2]
[423136819,1779881680000,255.28,0.00026865,2]
[423136817,1779881680000,255.28,0.00025012,2]
[423136818,1779881680000,255.28,0.00025939,2]
[423136823,1779881681000,255.28,0.00030571,2]
[423136822,1779881681000,255.28,0.00029644,2]
[423136824,1779881706000,1000.0,0.00030137,10]
[423136825,1779881707000,326.0,0.00030137,10]
[423136826,1779881872000,-300.0,0.0003156,117]
[423136827,1779881985000,2030.27353366,0.0003099,2]
[423136831,1779882279000,7265.49412641,0.0002,2]
[423136832,1779882304000,164.0,0.0002972,30]
[423136833,1779882305000,166.0,0.0003072,30]
[423136841,1779882440000,-281.01250053,0.00032,120]
[423136840,1779882440000,-400.0,0.00031999,2]
[423136839,1779882440000,-150.0,0.00031872,30]
[423136838,1779882440000,-70.16917368,0.00031841,30]
[423136837,1779882440000,-87.71082632,0.00031841,30]
[423136835,1779882440000,-150.0,0.0003156,117]
[423136836,1779882440000,-186.81,0.0003166,2]
[423136834,1779882440000,-255.28,0.00031497,2]
[423136842,1779882462000,153.77,0.00016993,2]
[423136862,1779882634000,-197.10911148,0.00033,120]
[423136864,1779882634000,-212.64,0.00033525,7]
[423136871,1779882634000,-394.21822296,0.000339,120]
[423136861,1779882634000,-394.21822296,0.00033,120]
[423136868,1779882634000,-163.15,0.00033746,120]
[423136866,1779882634000,-1000.0,0.00033701,120]
[423136867,1779882634000,-209.46,0.00033745,5]
[423136860,1779882634000,-167.83851798,0.00033,120]
[423136865,1779882634000,-150.0,0.00033553,7]
[423136869,1779882634000,-3075.25123302,0.00033759,2]
[423136857,1779882634000,-255.28,0.00032423,2]
[423136853,1779882634000,-197.10911148,0.00032,120]
[423136855,1779882634000,-161.17,0.0003222,30]
[423136856,1779882634000,-8231.91408753,0.00032243,2]
[423136858,1779882634000,-150.0,0.00032647,7]
[423136854,1779882634000,-161.75,0.00032212,30]
[423136851,1779882634000,-346.5064589,0.00032,120]
[423136850,1779882634000,-167.83851798,0.00032,120]
[423136848,1779882634000,-468.56789271,0.00032,120]
[423136859,1779882634000,-1157.08023019,0.00033,120]
[423136849,1779882634000,-190.45112972,0.00032,120]
[423136847,1779882634000,-407.49983695,0.00032,120]
[423136872,1779882634000,-197.10911148,0.000339,120]
[423136852,1779882634000,-47.71176406,0.00032,120]
[423136870,1779882634000,-1157.08023019,0.000339,120]
[423136863,1779882634000,-255.28,0.0003335,2]
[423136884,1779882634000,-1158.421,0.00034276,38]
[423136874,1779882634000,-477.78,0.00033926,2]
[423136909,1779882634000,-374.97257475,0.00034698,2]
[423136904,1779882634000,-264.54297117,0.00034698,2]
[423136902,1779882634000,-348.02474903,0.00034698,2]
[423136897,1779882634000,-2000.0,0.00034681,2]
[423136906,1779882634000,-1018.91636732,0.00034698,2]
[423136907,1779882634000,-618.31401655,0.00034698,2]
[423136893,1779882634000,-163.14,0.00034305,2]
[423136899,1779882634000,-8074.18580681,0.00034698,2]
[423136887,1779882634000,-255.28,0.00034276,2]
[423136889,1779882634000,-2680.01,0.00034297,2]
[423136895,1779882634000,-150.0,0.0003446,7]
[423136891,1779882634000,-2500.0,0.00034297,120]
[423136877,1779882634000,-4974.60734442,0.00033948,2]
[423136885,1779882634000,-688.0,0.00034276,2]
[423136873,1779882634000,-161.17,0.00033915,30]
[423136875,1779882634000,-618.57,0.00033934,2]
[423136886,1779882634000,-170.052,0.00034276,38]
[423136880,1779882634000,-677.51,0.00034071,2]
[423136883,1779882634000,-500.0,0.00034251,2]
[423136876,1779882634000,-25.39265558,0.00033948,2]
[423136879,1779882634000,-200.0,0.00034001,2]
[423136882,1779882634000,-1031.62,0.0003422,2]
[423136911,1779882634000,-280.63250004,0.00034698,2]
[423136878,1779882634000,-211.44,0.00033988,120]
[423136881,1779882634000,-5864.90181193,0.00034204,2]
[423136954,1779882638000,-132.63015398,0.0003488,7]
[423136951,1779882638000,-317.49984602,0.00034879,7]
[423136950,1779882638000,-182.50015398,0.00034698,2]
[423136953,1779882638000,-367.36984602,0.0003488,7]
[423136952,1779882638000,-182.50015398,0.00034879,7]
[423136956,1779882638000,-391.01585157,0.0003488,7]
[423136960,1779882638000,-454.82753774,0.0003488,7]
[423136958,1779882638000,-500.0,0.0003488,7]
[423136957,1779882638000,-108.98414843,0.0003488,7]
[423136961,1779882638000,-500.0,0.0003488,7]
[423136962,1779882638000,-166.29,0.00034918,2]
[423136959,1779882638000,-45.17246226,0.0003488,7]
[423136955,1779882638000,-500.0,0.0003488,7]
[423136963,1779882638000,-175.71477464,0.00035,120]
[423136992,1779882640000,-500.0,0.00035155,2]
[423137004,1779882640000,-500.0,0.00035155,7]
[423136993,1779882640000,-500.0,0.00035155,7]
[423137003,1779882640000,-500.0,0.00035155,2]
[423136988,1779882640000,-500.0,0.00035155,2]
[423136986,1779882640000,-500.0,0.00035155,7]
[423136990,1779882640000,-500.0,0.00035155,2]
[423136980,1779882640000,-500.0,0.00035155,2]
[423136987,1779882640000,-500.0,0.00035155,7]
[423136983,1779882640000,-500.0,0.00035155,7]
[423136991,1779882640000,-500.0,0.00035155,7]
[423136981,1779882640000,-500.0,0.00035155,7]
[423136982,1779882640000,-500.0,0.00035155,2]
[423136985,1779882640000,-500.0,0.00035155,2]
[423136979,1779882640000,-1031.62,0.00035075,2]
[423136978,1779882640000,-197.10911148,0.00035,120]
[423136977,1779882640000,-394.21822296,0.00035,120]
[423136976,1779882640000,-981.36545555,0.00035,120]
[423136995,1779882640000,-500.0,0.00035155,7]
[423136989,1779882640000,-500.0,0.00035155,7]
[423136997,1779882640000,-500.0,0.00035155,7]
[423136984,1779882640000,-500.0,0.00035155,2]
[423136996,1779882640000,-500.0,0.00035155,2]
[423136994,1779882640000,-500.0,0.00035155,2]
[423137020,1779882640000,-500.0,0.00035155,7]
[423137018,1779882640000,-500.0,0.00035155,7]
[423137019,1779882640000,-500.0,0.00035155,7]
[423137011,1779882640000,-500.0,0.00035155,7]
[423137013,1779882640000,-500.0,0.00035155,7]
[423137015,1779882640000,-500.0,0.00035155,7]
[423137012,1779882640000,-500.0,0.00035155,7]
[423137010,1779882640000,-500.0,0.00035155,7]
[423137009,1779882640000,-500.0,0.00035155,7]
[423137014,1779882640000,-500.0,0.00035155,7]
[423137008,1779882640000,-470.82859363,0.00035155,2]
[423137016,1779882640000,-500.0,0.00035155,7]
[423137006,1779882640000,-500.0,0.00035155,2]
[423137005,1779882640000,-500.0,0.00035155,2]
[423137007,1779882640000,-500.0,0.00035155,7]
[423137001,1779882640000,-500.0,0.00035155,2]
[423137002,1779882640000,-500.0,0.00035155,7]
[423136999,1779882640000,-500.0,0.00035155,2]
[423137000,1779882640000,-500.0,0.00035155,7]
[423137017,1779882640000,-500.0,0.00035155,7]
[423136998,1779882640000,-500.0,0.00035155,2]
[423137067,1779882641000,-493.38669858,0.00035499,2]
[423137056,1779882641000,-1148.83589152,0.00035499,2]
[423137065,1779882641000,-1096.2926835,0.00035499,2]
[423137064,1779882641000,-484.76763572,0.00035499,2]
[423137057,1779882641000,-310.02493426,0.00035499,2]
[423137055,1779882641000,-300.09384644,0.00035499,2]
[423137060,1779882641000,-300.0,0.00035499,2]
[423137058,1779882641000,-300.0,0.00035499,2]
[423137059,1779882641000,-594.79850986,0.00035499,2]
[423137050,1779882641000,-344.45437934,0.00035499,2]
[423137063,1779882641000,-452.52893397,0.00035499,2]
[423137062,1779882641000,-578.28315025,0.00035499,2]
[423137066,1779882641000,-300.0,0.00035499,2]
[423137074,1779882641000,-894.65434383,0.00035499,2]
[423137069,1779882641000,-300.0,0.00035499,2]
[423137079,1779882641000,-300.0,0.00035499,2]
[423137080,1779882641000,-1263.96825586,0.00035499,2]
[423137068,1779882641000,-605.8677548,0.00035499,2]
[423137071,1779882641000,-300.0,0.00035499,2]
[423137073,1779882641000,-1068.40163352,0.00035499,2]
[423137077,1779882641000,-302.21937029,0.00035499,2]
[423137078,1779882641000,-300.0,0.00035499,2]
[423137076,1779882641000,-300.0,0.00035499,2]
[423137048,1779882641000,-300.0,0.00035499,2]
[423137075,1779882641000,-727.07827244,0.00035499,2]
[423137081,1779882641000,-344.45437934,0.00035499,2]
[423137085,1779882641000,-1148.83589152,0.00035499,2]
[423137061,1779882641000,-464.48677942,0.00035499,2]
[423137049,1779882641000,-1263.96825586,0.00035499,2]
[423137039,1779882641000,-4806.46472602,0.00035454,120]
[423137051,1779882641000,-527.62572404,0.00035499,2]
[423137092,1779882641000,-300.0,0.00035499,2]
[423137029,1779882641000,-500.0,0.00035155,7]
[423137021,1779882641000,-500.0,0.00035155,7]
[423137022,1779882641000,-500.0,0.00035155,7]
[423137024,1779882641000,-500.0,0.00035155,7]
[423137023,1779882641000,-500.0,0.00035155,7]
[423137028,1779882641000,-500.0,0.00035155,7]
[423137027,1779882641000,-500.0,0.00035155,7]
[423137025,1779882641000,-500.0,0.00035155,7]
[423137026,1779882641000,-500.0,0.00035155,7]
[423137030,1779882641000,-500.0,0.00035155,7]
[423137036,1779882641000,-293.26647947,0.00035398,2]
[423137034,1779882641000,-1828.9471,0.00035303,2]
[423137052,1779882641000,-300.0,0.00035499,2]
[423137035,1779882641000,-150.0,0.00035367,7]
[423137033,1779882641000,-5167.6423992,0.00035289,2]
[423137031,1779882641000,-483.42,0.00035179,7]
[423137038,1779882641000,-157.88,0.00035432,7]
[423137037,1779882641000,-8828.37115349,0.00035403,2]
[423137040,1779882641000,-3867.83,0.00035489,10]
[423137043,1779882641000,-727.07827244,0.00035499,2]
[423137046,1779882641000,-300.99795142,0.00035499,2]
[423137042,1779882641000,-253.38749672,0.00035494,7]
[423137054,1779882641000,-950.32029804,0.00035499,2]
[423137053,1779882641000,-865.6208675,0.00035499,2]
[423137044,1779882641000,-302.21937029,0.00035499,2]
[423137045,1779882641000,-300.0,0.00035499,2]
[423137047,1779882641000,-300.0,0.00035499,2]
[423137032,1779882641000,-255.28,0.00035203,2]
[423137082,1779882641000,-527.62572404,0.00035499,2]
[423137041,1779882641000,-212.65620523,0.00035494,7]
[423137086,1779882641000,-310.02493426,0.00035499,2]
[423137113,1779882641000,-5167.6423992,0.00035577,2]
[423137121,1779882641000,-500.0,0.00035664,15]
[423137132,1779882641000,-1157.08023019,0.00036,120]
[423137120,1779882641000,-8828.37115349,0.00035644,2]
[423137131,1779882641000,-18987.9539975,0.00035941,2]
[423137129,1779882641000,-184.7831,0.00035837,2]
[423137122,1779882641000,-500.0,0.00035664,15]
[423137125,1779882641000,-170.18509691,0.00035664,15]
[423137126,1779882641000,-444.05941275,0.00035664,15]
[423137123,1779882641000,-267.29875249,0.00035664,15]
[423137130,1779882641000,-1031.62,0.00035931,2]
[423137124,1779882641000,-152.75956668,0.00035664,15]
[423137146,1779882641000,-9073.32342271,0.000362,2]
[423137110,1779882641000,-1000.0,0.00035499,2]
[423137128,1779882641000,-8828.37115349,0.00035665,2]
[423137135,1779882641000,-273.681016,0.00036055,21]
[423137136,1779882641000,-314.427671,0.00036055,120]
[423137134,1779882641000,-197.10911148,0.00036,120]
[423137144,1779882641000,-415.33758755,0.000362,2]
[423137145,1779882641000,-365.80862365,0.000362,2]
[423137137,1779882641000,-1813.22,0.00036117,120]
[423137141,1779882641000,-196.64301011,0.000362,2]
[423137142,1779882641000,-205.65236121,0.000362,2]
[423137138,1779882641000,-1179.6247,0.0003619,2]
[423137139,1779882641000,-5000.0,0.000362,2]
[423137140,1779882641000,-1421.89700913,0.000362,2]
[423137143,1779882641000,-270.46909414,0.000362,2]
[423137147,1779882641000,-265.01265008,0.00036274,7]
[423137127,1779882641000,-500.0,0.00035664,15]
[423137114,1779882641000,-161.17,0.00035611,30]
[423137133,1779882641000,-394.21822296,0.00036,120]
[423137115,1779882641000,-1000.0,0.00035616,30]
[423137116,1779882641000,-1000.0,0.00035616,30]
[423137083,1779882641000,-865.6208675,0.00035499,2]
[423137093,1779882641000,-310.28230408,0.00035499,2]
[423137087,1779882641000,-594.79850986,0.00035499,2]
[423137089,1779882641000,-464.48677942,0.00035499,2]
[423137090,1779882641000,-397.81566495,0.00035499,2]
[423137091,1779882641000,-452.52893397,0.00035499,2]
[423137088,1779882641000,-300.0,0.00035499,2]
[423137095,1779882641000,-300.0,0.00035499,2]
[423137106,1779882641000,-300.99795142,0.00035499,2]
[423137105,1779882641000,-300.0,0.00035499,2]
[423137094,1779882641000,-1096.2926835,0.00035499,2]
[423137096,1779882641000,-493.38669858,0.00035499,2]
[423137097,1779882641000,-605.31118564,0.00035499,2]
[423137084,1779882641000,-950.32029804,0.00035499,2]
[423137119,1779882641000,-1102.11452881,0.00035616,30]
[423137117,1779882641000,-1000.0,0.00035616,30]
[423137112,1779882641000,-255.279171,0.00035574,21]
[423137111,1779882641000,-18987.95399751,0.00035516,2]
[423137107,1779882641000,-300.0,0.00035499,2]
[423137109,1779882641000,-344.45437934,0.00035499,2]
[423137118,1779882641000,-1000.0,0.00035616,30]
[423137103,1779882641000,-727.07827244,0.00035499,2]
[423137101,1779882641000,-1068.40163352,0.00035499,2]
[423137098,1779882641000,-300.0,0.00035499,2]
[423137100,1779882641000,-528.48327171,0.00035499,2]
[423137102,1779882641000,-894.65434383,0.00035499,2]
[423137104,1779882641000,-302.21937029,0.00035499,2]
[423137099,1779882641000,-300.0,0.00035499,2]
[423137108,1779882641000,-1263.96825586,0.00035499,2]
[423137150,1779882642000,-500.0,0.00036299,30]
[423137157,1779882642000,-500.0,0.00036299,30]
[423137158,1779882642000,-500.0,0.00036299,30]